bitfinex-derivatives/quotes_ETHF0:USTF0_20250217
["timestamp","ask_amount","ask_price","bid_price","bid_amount"]
[1739756908128,2.424,2676.4,2676.1,3.2078]
[1739756908429,2.424,2676.4,2676.2,0.7472]
[1739756909426,2.424,2676.4,2676.1,3.2078]
[1739756909427,2.424,2676.4,2676.3,0.74719]
[1739756909627,2.424,2676.4,2676.1,3.2078]
[1739756909827,2.424,2676.4,2676.3,0.74719]
[1739756915729,2.424,2676.4,2676.3,1.29869]
[1739756920028,0.74719,2676.3,2676.2,0.5828]
[1739756920228,2.424,2676.4,2676.2,0.5828]
[1739756920428,3.17118,2676.4,2676.2,0.5828]
[1739756920629,2.424,2676.4,2675.9,0.5801]
[1739756920831,1.33782,2676.3,2676.0,0.74727]
[1739756921231,3.53496173,2676.2,2675.8,3.2078]
[1739756921436,0.5773,2676.1,2675.8,3.2078]
[1739756921739,2.424,2676.0,2675.8,3.2078]
[1739756921929,0.74733,2675.8,2675.7,0.5822]
[1739756923732,45.34572,2675.9,2675.7,0.5822]
[1739756923938,44.5984,2675.9,2675.7,1.32955]
[1739756924134,44.0078,2675.9,2675.7,0.5822]
[1739756924437,44.75511,2675.9,2675.7,0.5822]
[1739756924832,3.2078,2675.9,2675.7,0.5822]
[1739756925035,0.74733,2675.8,2675.7,0.5822]
[1739756925235,3.2078,2675.9,2675.7,0.5822]
[1739756925537,3.95511,2675.9,2675.7,0.5822]
[1739756925738,0.74733,2675.8,2675.7,0.5822]
[1739756925938,3.2078,2675.9,2675.7,0.5822]
[1739756926330,3.2078,2675.9,2675.7,1.1685]
[1739756926737,3.95513,2675.9,2675.7,1.1685]
[1739756926936,3.2078,2675.9,2675.7,1.1685]
[1739756927137,0.74733,2675.8,2675.7,1.1685]
[1739756928034,0.74733,2675.8,2675.7,0.5822]
[1739756928543,0.74733,2675.8,2675.5,0.5479]
[1739756928739,0.5842,2675.7,2675.5,1.1241]
[1739756928941,2.424,2675.6,2675.5,1.87151]
[1739756929139,2.424,2675.6,2675.5,1.1241]
[1739756929441,3.17139,2675.6,2675.5,1.1241]
[1739756931841,3.17139,2675.6,2675.5,0.5762]
[1739756939442,2.424,2675.6,2675.5,0.5762]
[1739756939646,2.424,2675.6,2675.5,1.32361]
[1739756939846,3.17139,2675.6,2675.5,1.32361]
[1739756940251,3.17139,2675.6,2675.5,0.5762]
[1739756940948,3.17139,2675.6,2675.5,1.32361]
[1739756941150,2.424,2675.6,2675.5,1.32361]
[1739756941347,0.5842,2675.7,2675.5,0.5762]
[1739756941556,41.9367,2676.1,2675.7,0.74735]
[1739756941744,0.74731,2675.9,2675.7,0.74735]
[1739756942339,0.74734,2675.8,2675.6,1.30747]
[1739756942551,2.9654,2676.0,2675.7,0.74736]
[1739756942552,0.74732,2675.9,2675.7,0.74736]
[1739756942746,2.9654,2676.0,2675.7,0.74736]
[1739756942951,2.9654,2676.0,2675.6,0.5601]
[1739756943154,0.7473,2675.9,2675.7,0.74736]
[1739756943355,2.9654,2676.0,2675.6,0.5601]
[1739756943751,0.74736,2675.7,2675.6,0.5601]
[1739756943945,2.9654,2676.0,2675.6,0.5601]
[1739756944250,0.74734,2675.8,2675.6,1.30747]
[1739756944844,2.9654,2676.0,2675.6,0.5601]
[1739756945051,0.74735,2675.8,2675.6,1.30749]
[1739756945646,3.2078,2675.9,2675.6,0.5601]
[1739756945853,0.74739,2675.6,2675.5,0.5762]
[1739756946149,3.17139,2675.6,2675.5,0.5762]
[1739756946753,0.74741,2675.5,2675.4,0.00560842]
[1739756946958,0.74755,2675.1,2674.9,0.64835485]
[1739756947144,3.0086,2675.0,2674.9,0.64835485]
[1739756947346,3.2078,2675.2,2674.9,0.64835485]
[1739756947550,3.2078,2675.2,2675.1,0.74753]
[1739756947852,5.6318,2675.2,2675.1,0.74753]
[1739756948257,5.6318,2675.2,2674.9,1.95703327]
[1739756948554,5.6318,2675.2,2674.9,1.20946327]
[1739756948758,1.33854,2675.1,2674.9,0.65396327]
[1739756949255,0.591,2675.1,2675.0,0.74755]
[1739756949455,5.6318,2675.2,2675.0,0.74754]
[1739756950353,5.6318,2675.2,2674.9,1.21856327]
[1739756950957,0.74754,2675.1,2674.9,1.21856327]
[1739756951159,5.6318,2675.2,2674.9,0.65396327]
[1739756951356,0.74753,2675.1,2674.9,0.65396327]
[1739756951555,0.5805,2675.0,2674.9,0.65396327]
[1739756951760,1.32805,2675.0,2674.9,0.65396327]
[1739756952556,0.5805,2675.0,2674.9,1.40154327]
[1739756952856,5.6318,2675.2,2675.0,0.74755]
[1739756953063,6.3793,2675.2,2674.9,1.95092327]
[1739756953362,5.6318,2675.2,2674.9,1.20336327]
[1739756953658,0.74754,2675.1,2674.9,1.20336327]
[1739756953860,5.6318,2675.2,2674.9,1.20336327]
[1739756954051,5.6318,2675.2,2675.0,0.74754]
[1739756954252,5.6318,2675.2,2675.0,0.74755]
[1739756954651,5.6318,2675.2,2675.1,0.74753]
[1739756956549,0.5805,2675.3,2674.9,1.20336327]
[1739756956753,0.00560842,2675.4,2675.3,0.74747]
[1739756956954,2.42960842,2675.4,2675.3,0.74747]
[1739756957560,2.42960842,2675.4,2675.2,0.74749]
[1739756957759,2.42960842,2675.4,2675.3,1.1356]
[1739756958064,2.42960842,2675.4,2675.3,1.88307]
[1739756958265,2.42960842,2675.4,2675.3,1.1356]
[1739756958466,0.00560842,2675.4,2675.3,1.1356]
[1739756958660,2.42960842,2675.4,2675.3,1.88307]
[1739756962968,0.00560842,2675.4,2675.3,1.88307]
[1739756963166,2.42960842,2675.4,2675.3,1.88307]
[1739756967862,0.00560842,2675.4,2675.3,1.88307]
[1739756973671,0.5911,2676.0,2675.9,0.7473]
[1739756976472,0.74719,2676.3,2676.2,0.74721]
[1739756976769,0.74719,2676.3,2676.1,0.74724]
[1739756976770,2.424,2676.2,2676.1,0.74724]
[1739756976967,3.17122,2676.2,2676.1,0.74724]
[1739756977162,2.424,2676.2,2676.1,0.74724]
[1739756978277,3.17122,2676.2,2676.1,0.74724]
[1739756978574,2.424,2676.2,2676.1,0.74724]
[1739756979175,2.424,2676.2,2675.8,3.7482]
[1739756979371,3.17123,2676.2,2675.8,3.7482]
[1739756979674,2.424,2676.2,2676.1,0.74725]
[1739756980066,3.17122,2676.2,2676.1,0.74725]
[1739756980271,2.424,2676.2,2676.1,0.74725]
[1739756980870,3.17123,2676.2,2676.1,0.74725]
[1739756981268,2.424,2676.2,2676.1,0.74725]
[1739756981872,0.5591,2676.3,2676.2,0.74722]
[1739756982072,0.66566997,2676.5,2676.2,5.07579]
[1739756982379,0.66566997,2676.5,2676.4,0.74716]
[1739756982872,0.66566997,2676.5,2676.4,1.28906]
[1739756983970,1.1555,2676.7,2676.4,0.5419]
[1739756984172,1.1555,2676.7,2676.6,0.74711]
[1739756984778,0.5608,2676.7,2676.6,0.74711]
[1739756988774,0.01738,2677.4,2677.3,0.74691]
[1739756989080,3.03068,2677.4,2677.0,3.2078]
[1739756989282,3.03068,2677.4,2677.2,0.74692]
[1739756989484,3.03068,2677.4,2677.3,0.74691]
[1739756990180,0.01738,2677.4,2677.3,0.74691]
[1739756990381,2.9985,2677.6,2677.5,0.74686]
[1739756990581,0.5755,2677.6,2677.3,3.2078]
[1739756990776,0.5755,2677.6,2677.4,0.74686]
[1739756991676,0.5755,2677.6,2677.5,0.74686]
[1739756991877,0.5755,2677.6,2677.4,0.74687]
[1739756992076,0.5755,2677.6,2677.5,0.74686]
[1739756992580,0.5755,2677.6,2677.4,0.74687]
[1739756992780,0.5755,2677.6,2677.3,3.2078]
[1739756992981,0.5755,2677.6,2677.4,0.74686]
[1739756993478,0.5755,2677.6,2677.3,3.2078]
[1739756993783,0.5755,2677.6,2677.4,0.74687]
[1739756994882,0.5755,2677.6,2677.3,3.2078]
[1739756995080,0.5755,2677.6,2677.5,0.74686]
[1739756995680,1.32234,2677.6,2677.3,3.9547]
[1739756995877,1.32234,2677.6,2677.3,3.2078]
[1739756996079,0.5755,2677.6,2677.1,0.5572]
[1739756996276,1.32234,2677.6,2677.3,0.7469]
[1739756996877,0.5755,2677.6,2677.4,0.74687]
[1739756997285,1.32234,2677.6,2677.3,0.7469]
[1739756997586,1.32234,2677.6,2677.1,0.5572]
[1739756997587,1.32234,2677.6,2677.4,0.74687]
[1739756998381,1.32234,2677.6,2677.1,0.5572]
[1739756998585,1.32233,2677.6,2677.4,0.74688]
[1739756999283,1.32233,2677.6,2677.1,0.5572]
[1739756999784,0.5755,2677.6,2677.3,0.74689]
[1739756999986,0.74686,2677.5,2677.3,0.74689]
[1739757000178,0.74686,2677.5,2677.3,0.74691]
[1739757000378,0.74692,2677.3,2677.0,3.95477]
[1739757000578,1.87035,2677.2,2677.0,3.2078]
[1739757000777,1.7044,2677.2,2677.0,3.2078]
[1739757000977,2.422,2677.3,2677.0,3.2078]
[1739757001178,2.422,2677.3,2677.2,0.74694]
[1739757001589,2.422,2677.3,2677.1,0.74695]
[1739757001981,2.422,2677.3,2677.0,3.2078]
[1739757002187,2.422,2677.3,2677.1,0.74695]
[1739757002383,2.422,2677.3,2677.0,3.2078]
[1739757002580,3.16891,2677.3,2677.1,0.74696]
[1739757002781,3.16891,2677.3,2677.0,3.2078]
[1739757002782,2.422,2677.3,2677.0,3.2078]
[1739757003787,2.422,2677.3,2677.2,0.74694]
[1739757004482,2.9625,2677.6,2677.0,3.2078]
[1739757004791,2.9625,2677.6,2677.1,1.8674]
[1739757005089,2.9625,2677.6,2677.2,0.5552]
[1739757005386,2.9625,2677.6,2677.5,0.74686]
[1739757005585,3.70933,2677.6,2677.5,0.74686]
[1739757005785,3.70933,2677.6,2677.3,1.1096]
[1739757005786,3.2078,2677.8,2677.3,4.3174]
[1739757005976,3.7646,2677.8,2677.7,0.7468]
[1739757006180,6.1866,2677.8,2677.3,6.18464]
[1739757006380,6.93339,2677.8,2677.3,4.3174]
[1739757006982,0.74681,2677.7,2677.3,4.3174]
[1739757007180,6.93338,2677.8,2677.3,4.3174]
[1739757007382,0.7468,2677.7,2677.4,0.74687]
[1739757007784,6.9334,2677.8,2677.5,0.74683]
[1739757008187,6.1866,2677.8,2677.3,4.3174]
[1739757008489,0.74681,2677.7,2677.5,0.74685]
[1739757008884,6.93338,2677.8,2677.6,0.74682]
[1739757009285,6.1866,2677.8,2677.6,0.74682]
[1739757009487,6.93338,2677.8,2677.6,0.74682]
[1739757009790,6.93338,2677.8,2677.7,0.7468]
[1739757009791,2.9788,2677.8,2677.7,0.7468]
[1739757010988,2.9788,2677.8,2677.7,1.3208]
[1739757011183,1.1422,2678.0,2677.7,0.574]
[1739757011388,2.422,2677.9,2677.7,0.574]
[1739757011689,1.1676,2678.0,2677.9,0.74674]
[1739757011893,2.9958,2678.0,2677.9,0.74674]
[1739757012191,2.422,2678.2,2678.1,0.74669]
[1739757012984,2.422,2678.2,2677.9,3.2078]
[1739757013191,6.14690103,2678.1,2677.8,0.5613]
[1739757013389,0.74677,2677.8,2677.7,0.00560842]
[1739757013591,9.31567103,2677.8,2677.7,0.00560842]
[1739757013992,14.56890103,2677.8,2677.1,3.2078]
[1739757014195,0.74694,2677.2,2677.1,3.2078]
[1739757014491,5.6298,2677.2,2676.6,3.2078]
[1739757014784,0.74706,2676.8,2676.6,3.2078]
[1739757014990,2.422,2676.7,2676.6,3.2078]
[1739757015385,3.16908,2676.7,2676.6,3.2078]
[1739757015692,2.422,2676.7,2676.6,3.2078]
[1739757015891,3.16908,2676.7,2676.6,3.2078]
[1739757016189,2.422,2676.7,2676.6,3.2078]
[1739757016788,3.16908,2676.7,2676.6,3.2078]
[1739757016987,2.422,2676.7,2676.6,3.2078]
[1739757017880,3.16908,2676.7,2676.6,3.2078]
[1739757018092,0.74714,2676.5,2676.4,0.00560842]
[1739757018394,0.76382283,2676.5,2676.4,0.00560842]
[1739757019091,0.02506037,2676.5,2676.4,0.00560842]
[1739757019585,1.88067791,2676.5,2676.4,0.00560842]
[1739757019784,1.13353791,2676.5,2676.4,0.00560842]
[1739757020290,1.14191545,2676.5,2676.4,0.00560842]
[1739757020680,1.88905545,2676.5,2676.4,0.00560842]
[1739757020987,1.14191545,2676.5,2676.4,0.00560842]
[1739757021185,2.46381545,2676.5,2676.4,0.00560842]
[1739757021496,2.46381545,2676.5,2676.4,1.87716842]
[1739757022685,0.04181545,2676.5,2676.4,1.87716842]
[1739757022891,2.46381545,2676.5,2676.4,1.87716842]
[1739757023691,0.04181545,2676.5,2676.4,1.87716842]
[1739757023892,0.00560842,2677.0,2676.8,0.74704]
[1739757024085,2.422,2676.9,2676.8,0.74704]
[1739757026287,1.5222,2676.9,2676.8,1.29034]
[1739757026493,0.00560842,2677.0,2676.9,0.74702]
[1739757028093,0.74702,2676.9,2676.4,3.21340842]
[1739757028297,2.422,2676.8,2676.7,0.74706]
[1739757028496,2.422,2676.8,2676.7,0.74708]
[1739757028698,2.422,2676.8,2676.6,0.74708]
[1739757028907,2.422,2676.8,2676.4,3.21340842]
[1739757029197,2.422,2676.8,2676.7,3.95488]
[1739757030597,2.422,2676.8,2676.7,3.2078]
[1739757031501,2.422,2676.8,2676.7,3.95488]
[1739757032791,2.422,2676.8,2676.7,3.2078]
[1739757033100,3.16905,2676.8,2676.7,3.2078]
[1739757034499,2.422,2676.8,2676.7,3.2078]
[1739757036906,3.16905,2676.8,2676.7,3.2078]
[1739757037795,2.422,2676.8,2676.7,3.2078]
[1739757037997,3.16905,2676.8,2676.7,3.2078]
[1739757038394,2.422,2676.8,2676.7,3.2078]
[1739757038802,3.16905,2676.8,2676.7,3.2078]
[1739757040306,2.422,2676.8,2676.7,3.2078]
[1739757040504,3.16905,2676.8,2676.7,3.2078]
[1739757044807,0.74714,2676.5,2676.4,0.00560842]
[1739757046803,1.31634,2676.5,2676.4,0.00560842]
[1739757047810,0.5692,2676.5,2676.4,0.00560842]
[1739757048006,1.31634,2676.5,2676.4,0.00560842]
[1739757053316,0.5692,2676.5,2676.4,0.00560842]
[1739757053718,0.5692,2676.5,2676.4,0.58670842]
[1739757053920,1.31634,2676.5,2676.4,0.00560842]
[1739757059315,1.166,2676.7,2676.4,0.00560842]
[1739757059510,3.16911,2676.6,2676.4,1.33256842]
[1739757059710,3.16911,2676.6,2676.4,1.87616842]
[1739757059711,2.422,2676.5,2676.4,1.87616842]
[1739757059912,2.422,2676.5,2676.4,1.12900842]
[1739757060221,2.422,2676.5,2676.4,1.87616842]
[1739757060519,1.32489,2676.7,2676.5,0.74713]
[1739757060710,2.422,2676.6,2676.5,0.74713]
[1739757061316,0.56930842,2677.0,2676.5,0.74714]
[1739757061512,2.422,2676.9,2676.8,0.74705]
[1739757061920,2.422,2676.9,2676.7,0.74706]
[1739757062117,3.16904,2676.9,2676.6,3.2078]
[1739757062419,2.422,2676.9,2676.6,3.2078]
[1739757062622,40.80560842,2677.0,2676.8,0.74705]
[1739757062820,41.55260842,2677.0,2676.9,0.5715]
[1739757063011,43.97460842,2677.0,2676.9,0.5715]
[1739757064013,43.22760842,2677.0,2676.9,0.5715]
[1739757064220,2.42760842,2677.0,2676.9,0.5715]
[1739757064523,3.17460842,2677.0,2676.9,0.5715]
[1739757068523,2.42760842,2677.0,2676.9,0.5715]
[1739757068723,3.17460842,2677.0,2676.9,0.5715]
[1739757069134,2.42760842,2677.0,2676.9,1.31852]
[1739757070126,0.00560842,2677.0,2676.9,4.52632]
[1739757070327,2.422,2677.1,2676.9,3.7793]
[1739757070625,2.422,2677.1,2677.0,1.2953]
[1739757071428,3.2078,2677.5,2677.4,0.74688]
[1739757071619,5.6298,2677.5,2677.4,0.74688]
[1739757072826,23.9098,2677.8,2677.6,0.74682]
[1739757073021,2.422,2677.7,2677.6,0.74682]
[1739757073722,2.422,2677.7,2677.3,0.84890545]
[1739757073924,24.65658,2677.8,2677.5,0.74683]
[1739757074131,2.422,2677.6,2677.5,0.74683]
[1739757074424,2.422,2677.6,2677.3,0.545]
[1739757074727,2.422,2677.6,2677.4,0.74687]
[1739757074918,2.422,2677.6,2677.4,1.32217]
[1739757075528,2.422,2677.5,2677.4,1.32217]
[1739757076227,5.36110103,2677.5,2677.3,0.545]
[1739757076426,40.8,2677.4,2677.3,0.7469]
[1739757076732,2.422,2677.5,2677.2,3.2078]
[1739757076921,2.422,2677.5,2677.4,0.74688]
[1739757078732,0.74678,2677.8,2677.6,0.74682]
[1739757078927,2.422,2677.7,2677.3,0.5471]
[1739757079130,3.16881,2677.7,2677.5,0.74685]
[1739757079330,3.16881,2677.7,2677.3,0.5471]
[1739757079528,2.422,2677.7,2677.3,0.5471]
[1739757079825,2.422,2677.7,2677.6,0.74683]
[1739757081731,2.422,2677.7,2677.5,0.74684]
[1739757081932,3.16881,2677.7,2677.4,0.74687]
[1739757082334,3.16881,2677.7,2677.4,0.74686]
[1739757082532,2.422,2677.7,2677.3,0.5471]
[1739757082830,2.422,2677.7,2677.5,0.74684]
[1739757083030,2.422,2677.7,2677.6,0.74683]
[1739757083232,41.896,2677.9,2677.5,3.2078]
[1739757083430,2.421,2677.8,2677.6,1.33201]
[1739757083929,2.421,2677.8,2677.6,1.33202]
[1739757084328,2.421,2677.8,2677.7,0.7468]
[1739757085429,3.16778,2677.8,2677.6,0.5852]
[1739757085630,3.16778,2677.8,2677.6,1.33202]
[1739757087034,2.421,2677.8,2677.7,0.7468]
[1739757087235,3.16777,2677.8,2677.6,1.33202]
[1739757087830,2.421,2677.8,2677.7,0.7468]
[1739757088335,3.16777,2677.8,2677.6,1.332]
[1739757088728,3.68590103,2677.7,2677.5,3.2078]
[1739757089227,3.68590103,2677.7,2677.5,3.95464]
[1739757089433,2.93910103,2677.7,2677.5,3.95464]
[1739757089837,3.68590103,2677.7,2677.5,3.95464]
[1739757090141,0.74683,2677.6,2677.5,3.2078]
[1739757090833,2.93910103,2677.7,2677.5,3.95465]
[1739757091034,3.68591103,2677.7,2677.5,3.95465]
[1739757091228,2.93910103,2677.7,2677.5,3.95463]
[1739757091535,3.68591103,2677.7,2677.5,3.95463]
[1739757092637,3.68592103,2677.7,2677.5,3.2078]
[1739757092938,3.68592103,2677.7,2677.5,3.95465]
[1739757093138,3.68592103,2677.7,2677.5,3.2078]
[1739757093340,2.93910103,2677.7,2677.6,0.74683]
[1739757093635,2.93910103,2677.7,2677.5,3.2078]
[1739757093839,0.74683,2677.6,2677.5,3.2078]
[1739757094438,3.68591103,2677.7,2677.5,3.95465]
[1739757095434,0.74683,2677.6,2677.5,3.2078]
[1739757096034,3.68592103,2677.7,2677.5,3.2078]
[1739757096439,0.74683,2677.6,2677.5,3.2078]
[1739757097642,2.421,2677.8,2677.7,0.7468]
[1739757098344,2.421,2677.8,2677.7,0.74678]
[1739757098839,4.3038,2677.9,2677.5,3.2078]
[1739757099045,3.757,2677.9,2677.8,0.74677]
[1739757099239,6.178,2677.9,2677.8,0.74677]
[1739757099544,2.9702,2677.9,2677.8,0.74677]
[1739757100132,2.9702,2677.9,2677.8,1.31257]
[1739757100339,2.9702,2677.9,2677.8,0.5658]
[1739757100840,2.9702,2677.9,2677.7,0.5556]
[1739757101035,1.33637,2677.8,2677.5,3.95464]
[1739757101240,0.5896,2677.8,2677.6,0.74681]
[1739757101442,0.5896,2677.8,2677.5,3.95464]
[1739757101646,1.33638,2677.8,2677.5,3.95464]
[1739757102142,0.5896,2677.8,2677.5,3.2078]
[1739757102341,3.68591103,2677.7,2677.5,3.2078]
[1739757102541,3.68591103,2677.7,2677.5,3.95466]
[1739757102843,3.68591103,2677.7,2677.5,3.2078]
[1739757103048,2.93910103,2677.7,2677.5,3.95465]
[1739757103345,2.93910103,2677.7,2677.5,3.2078]
[1739757103645,2.93910103,2677.7,2677.4,0.5658]
[1739757103836,3.68590103,2677.7,2677.4,1.31267]
[1739757104038,3.68590103,2677.7,2677.4,0.5658]
[1739757104241,3.68590103,2677.7,2677.4,1.31268]
[1739757104443,0.74683,2677.6,2677.4,1.31268]
[1739757104645,2.421,2677.5,2677.2,3.7686]
[1739757104845,0.74689,2677.4,2677.2,4.51553]
[1739757105041,0.74689,2677.4,2677.2,3.7686]
[1739757105042,0.74691,2677.3,2677.2,3.7686]
[1739757105546,0.74691,2677.3,2677.2,3.2078]
[1739757107050,4.81400103,2677.4,2677.2,3.2078]
[1739757107243,0.74691,2677.3,2677.2,3.2078]
[1739757115846,0.74691,2677.3,2677.2,3.7584]
[1739757116051,0.74691,2677.3,2677.2,4.3315]
[1739757117450,4.23560103,2677.4,2677.2,4.3315]
[1739757117654,3.48870103,2677.4,2677.2,5.07843]
[1739757117855,3.68599103,2677.4,2677.2,5.07843]
[1739757118041,3.68599103,2677.4,2677.2,4.3315]
[1739757118858,2.93910103,2677.4,2677.2,3.2078]
[1739757119054,0.74691,2677.3,2677.2,3.2078]
[1739757119355,2.93910103,2677.4,2677.2,3.2078]
[1739757119553,6.14690103,2677.7,2677.3,0.5787]
[1739757119752,6.89372103,2677.7,2677.3,2.46879]
[1739757120054,0.74688,2677.5,2677.3,1.7219]
[1739757120246,0.74688,2677.5,2677.3,1.1713]
[1739757120447,0.74688,2677.4,2677.3,1.1713]
[1739757120647,1.34088,2677.4,2677.3,1.1713]
[1739757123353,2.421,2677.6,2677.3,1.1713]
[1739757123554,0.74688,2677.5,2677.3,1.1713]
[1739757123858,2.421,2677.4,2677.3,1.9182]
[1739757124059,2.421,2677.4,2677.3,1.1713]
[1739757124958,2.421,2677.4,2677.3,1.91821]
[1739757126858,3.16788,2677.4,2677.3,1.91821]
[1739757127160,3.16788,2677.4,2677.3,1.1713]
[1739757127858,3.16788,2677.4,2677.3,1.91821]
[1739757127859,2.421,2677.4,2677.3,1.91821]
[1739757129169,2.93910103,2677.7,2677.3,1.1713]
[1739757129368,2.421,2677.6,2677.5,3.2078]
[1739757129663,2.421,2677.7,2677.6,0.74683]
[1739757130762,2.421,2677.8,2677.7,0.74677]
[1739757131364,2.421,2677.8,2677.5,3.2078]
[1739757131563,3.16778,2677.8,2677.6,0.74682]
[1739757131770,2.421,2677.8,2677.7,0.5603]
[1739757131961,3.16777,2677.8,2677.7,0.5603]
[1739757132465,2.421,2677.8,2677.7,0.5603]
[1739757132966,2.421,2677.8,2677.7,1.3071]
[1739757133757,2.421,2677.8,2677.7,0.5603]
[1739757133963,2.421,2677.8,2677.7,1.3071]
[1739757134663,2.421,2677.8,2677.7,0.5603]
[1739757134866,3.16777,2677.8,2677.7,0.5603]
[1739757135865,2.421,2677.8,2677.7,0.5603]
[1739757136168,3.16777,2677.8,2677.7,0.5603]
[1739757137860,2.421,2677.8,2677.7,0.5603]
[1739757138065,2.421,2677.8,2677.7,1.3071]
[1739757138462,2.421,2677.8,2677.7,0.5603]
[1739757138662,3.77668328,2677.8,2677.7,0.5603]
[1739757139468,3.77668328,2677.8,2677.7,1.3071]
[1739757141975,3.77668328,2677.8,2677.7,0.5603]
[1739757142676,3.77668328,2677.8,2677.7,1.3071]
[1739757144389,3.77668328,2677.8,2677.7,0.5603]
[1739757144583,3.77668328,2677.8,2677.7,1.3071]
[1739757144975,3.77668328,2677.8,2677.7,0.5603]
[1739757145788,3.77668328,2677.8,2677.7,1.3071]
[1739757146088,3.77668328,2677.8,2677.7,0.5603]
[1739757146384,3.77668328,2677.8,2677.7,1.3071]
[1739757150783,2.421,2677.8,2677.7,1.3071]
[1739757153490,1.35568328,2678.4,2677.7,3.78293328]
[1739757153686,1.35568328,2678.4,2678.3,0.74663]
[1739757153886,2.42,2678.4,2678.3,0.74663]
[1739757154485,2.42,2678.5,2678.3,0.74661]
[1739757154696,1.35568328,2678.4,2678.2,1.1187]
[1739757154999,0.74663,2678.3,2678.2,1.1187]
[1739757155395,3.5311,2678.5,2678.2,1.1187]
[1739757155692,3.2078,2678.7,2678.4,0.74661]
[1739757155693,1.35568328,2678.6,2678.4,0.74661]
[1739757155899,3.77568328,2678.6,2678.4,0.74661]
[1739757156296,3.77568328,2678.6,2678.5,0.74658]
[1739757156993,3.77568328,2678.6,2678.4,3.95439]
[1739757157295,3.77568328,2678.6,2678.5,0.74658]
[1739757158694,2.42,2678.6,2678.5,0.74658]
[1739757159191,2.42,2678.6,2678.4,3.95439]
[1739757159392,2.42,2678.6,2678.5,0.74658]
[1739757161194,2.42,2678.6,2678.4,3.2078]
[1739757161391,2.42,2678.6,2678.5,0.74658]
[1739757165899,3.16655,2678.6,2678.5,0.74658]
[1739757167398,0.74658,2678.5,2678.4,3.2078]
[1739757167801,3.16657,2678.6,2678.5,0.74658]
[1739757168101,2.42,2678.6,2678.4,3.2078]
[1739757168302,0.74652,2678.7,2678.5,0.74658]
[1739757168601,0.74652,2678.7,2678.6,1.145]
[1739757168805,0.5851,2678.8,2678.6,1.145]
[1739757169005,1.3316,2678.8,2678.6,1.89153]
[1739757169201,0.5851,2678.8,2678.6,1.145]
[1739757169506,3.75162,2678.8,2678.6,1.89153]
[1739757169701,3.0051,2678.8,2678.6,1.145]
[1739757169903,3.75161,2678.8,2678.7,0.74652]
[1739757170099,3.75161,2678.8,2678.6,1.145]
[1739757170304,3.0051,2678.8,2678.7,0.74652]
[1739757170498,3.0051,2678.8,2678.6,1.145]
[1739757170799,0.5553,2679.1,2678.7,3.2078]
[1739757171007,3.16545,2679.0,2678.9,0.74647]
[1739757171206,2.419,2679.0,2678.8,0.74648]
[1739757171503,3.16546,2679.0,2678.8,0.74648]
[1739757171705,3.16546,2679.0,2678.7,3.7583]
[1739757171903,3.16546,2679.0,2678.9,0.74647]
[1739757172205,0.5798,2679.2,2678.7,3.7583]
[1739757172403,0.74645,2679.0,2678.8,0.74648]
[1739757173098,2.419,2679.2,2678.7,3.7583]
[1739757173300,0.74642,2679.1,2678.9,0.74647]
[1739757173503,0.74642,2679.1,2679.0,0.5577]
[1739757173703,0.74642,2679.1,2679.0,1.1455]
[1739757174605,2.419,2679.2,2679.1,0.74641]
[1739757174807,3.73494,2679.4,2679.1,1.34338]
[1739757175002,3.73494,2679.4,2679.1,0.597]
[1739757175206,2.9886,2679.4,2679.1,0.597]
[1739757175399,2.9886,2679.4,2679.2,0.74638]
[1739757176005,2.9988,2679.5,2679.2,0.74638]
[1739757176311,3.74512,2679.5,2679.2,0.74638]
[1739757176805,3.74512,2679.5,2679.1,0.597]
[1739757177006,1.3261,2679.5,2679.2,0.74636]
[1739757177206,0.5798,2679.5,2679.1,0.597]
[1739757177402,0.5409,2679.7,2679.3,3.2078]
[1739757177605,0.5409,2679.7,2679.5,0.74628]
[1739757178101,3.954,2679.9,2679.4,1.1606]
[1739757178309,6.373,2679.9,2679.6,0.74627]
[1739757178608,6.98020888,2679.9,2679.5,0.5728]
[1739757178807,0.74624,2679.7,2679.5,0.5728]
[1739757179109,1.1345,2679.8,2679.5,0.5728]
[1739757179406,0.74624,2679.7,2679.5,0.5728]
[1739757179609,1.1345,2679.8,2679.5,0.5728]
[1739757179806,0.74624,2679.7,2679.5,0.5728]
[1739757180006,0.7463,2679.6,2679.4,0.5822]
[1739757180315,1.35340888,2679.5,2679.4,0.5822]
[1739757180507,0.74633,2679.4,2679.3,3.2078]
[1739757180811,2.419,2679.5,2679.3,3.2078]
[1739757181005,2.419,2679.5,2679.3,3.7873]
[1739757181209,2.419,2679.5,2679.3,3.2078]
[1739757181511,3.16531,2679.5,2679.3,3.95414]
[1739757181714,3.16531,2679.5,2679.3,3.2078]
[1739757182013,2.419,2679.5,2679.3,3.2078]
[1739757182516,2.419,2679.5,2679.4,0.74633]
[1739757182710,1.0981,2679.7,2679.5,0.74629]
[1739757182911,1.0981,2679.7,2679.6,1.1139]
[1739757183312,1.0981,2679.7,2679.3,3.2078]
[1739757183518,1.0981,2679.7,2679.3,3.7662]
[1739757183711,1.84437,2679.7,2679.3,4.51253]
[1739757184013,0.74632,2679.5,2679.3,3.7662]
[1739757184220,0.74629,2679.6,2679.3,4.51255]
[1739757184411,1.0981,2679.7,2679.3,3.7662]